Cogmind - Beta 11 X5 @@@ ROGUE MODE // 2021.06.06 @ 00:22:32 Player: Runia Result: Self-destructed Performance ------------- Evolutions (1) 500 Regions Visited (4) 800 Robots Destroyed (23) 115 Value Destroyed (568) 568 Prototype IDs (4) 80 Alien Tech Used (0) 0 Bonus (249) 249 TOTAL SCORE: 2312 Bonus ------- Aligned with FarCom 300 Friendly Fire -51 Cogmind --------- Core Integrity 86/400 Matter 183/300 Energy 22/100 System Corruption 5% Temperature Cool (0) Movement Treading (160) Location -9/Exiles Parts ------- > --- POWER (1) -------- (None) > --- PROPULSION (3) --- Light Treads Improved Treads > --- UTILITY (3) ------ Improved Heat Sink Large Storage Unit Visual Processing Unit > --- WEAPON (2) ------- YOLO Cannon > --- INVENTORY (15) --- Aluminum Leg Heat Sink Disposable Heat Sink Small Battery (55) Sensor Array Signal Interpreter Light Armor Plating Field Recycling Unit (0) Light Assault Rifle Light Assault Rifle Plasma Cutter Peak State ------------ > --- POWER ------------ (None) > --- PROPULSION ------- Light Treads Light Treads Improved Treads > --- UTILITY ---------- Improved Heat Sink Large Storage Unit Visual Processing Unit > --- WEAPON ----------- YOLO Cannon > --- INVENTORY -------- Aluminum Leg Heat Sink Disposable Heat Sink Sensor Array Signal Interpreter Light Armor Plating Field Recycling Unit Plasma Cutter Plasma Cutter [Rating: 31] Favorites ----------- Power Ion Engine Engine Ion Engine Propulsion Aluminum Leg Treads Light Treads Leg Aluminum Leg Utility Improved Heat Sink Device Improved Heat Sink Storage Large Storage Unit Processor Visual Processing Unit Weapon Light Assault Rifle Energy Gun Beam Rifle Energy Cannon YOLO Cannon Ballistic Gun Light Assault Rifle Special Weapon Plasma Cutter Build | -11 -10 -9 -9 -9 ------- Run | Scr Mat Mat Min Exi Slots Evolved 2 | . . 2 . . Power . | . . . . . Propulsion 1 | . . 1 . . Utility 1 | . . 1 . . Weapon . | . . . . . Parts Attached 25 | 1 3 11 6 4 Power 1 | . . 1 . . Engine 1 | . . 1 . . Core . | . . . . . Reactor . | . . . . . Propulsion 8 | . 1 3 4 . Treads 4 | . . 1 3 . Leg 4 | . 1 2 1 . Wheel . | . . . . . Hover . | . . . . . Flight . | . . . . . Utility 4 | . 1 3 . . Device 2 | . 1 1 . . Storage 1 | . . 1 . . Processor 1 | . . 1 . . Hackware . | . . . . . Protection . | . . . . . Artifact . | . . . . . Weapon 12 | 1 1 4 2 4 Energy Gun 5 | 1 1 3 . . Energy Cannon 2 | . . . . 2 Ballistic Gun 3 | . . 1 2 . Ballistic Cannon . | . . . . . Launcher . | . . . . . Special Weapon 2 | . . . . 2 Impact Weapon . | . . . . . Slashing Weapon . | . . . . . Piercing Weapon . | . . . . . Special Melee Weapon . | . . . . . Unidentified Prototypes 2 | . . 1 . 1 Parts Lost 10 | . . 1 7 2 Power 2 | . . 1 1 . Propulsion 5 | . . . 4 1 Utility . | . . . . . Weapon 3 | . . . 2 1 Highest Loss Streak 6 | . . 1 6 2 Average Slot Usage (%) 90 | . 90 98 83 86 Engine 5 | . 14 11 1 . Treads 16 | . . . 25 32 Leg 15 | . 28 31 5 . Device 10 | . 4 13 11 11 Storage 11 | . 14 11 11 11 Processor 8 | . . 7 11 11 Energy Gun 6 | . 14 11 6 . Ballistic Gun 12 | . 14 10 10 15 Special Weapon 1 | . . . . 4 Naked Turns . | . . . . . Heaviest Build 39 | 14 15 32 31 39 Greatest Support 63 | 20 20 30 63 63 Greatest Overweight (x) 1 | . . 1 1 . Average Overweight (x) . | . . . . . Largest Inventory Capacity 15 | 8 8 15 15 15 Average Capacity 13 | 8 8 14 15 15 Most Carried 15 | 5 8 14 14 15 Average Carried 9 | 4 5 9 10 9 Final Capacity 15 | 8 8 15 15 15 Final Carried 14 | 4 7 14 9 11 Class Distribution -------------------- 100% | Mutant Dominant Class ---------------- Mutant | -10/Materials Mutant | -9/Materials Mutant | -9/Mines Mutant | -9/Exiles Resources | -11 -10 -9 -9 -9 ----------- Run | Scr Mat Mat Min Exi Matter Collected 543 | 200 98 206 39 . Remotely . | . . . . . Salvage Created 674 | . 214 340 120 . Parts 51 | . 18 23 10 . Haulers Intercepted . | . . . . . Recyclers Shooed 1 | . 1 . . . Parts Field Recycled . | . . . . . Retrieved Matter . | . . . . . Parts Self-Destructed . | . . . . . Prevented . | . . . . . Kills | -11 -10 -9 -9 -9 ------- Run | Scr Mat Mat Min Exi Combat Hostiles Destroyed 20 | . 7 7 6 . Guns 20 | . 7 7 6 . Classes Destroyed 6 | . 3 2 1 . Watcher 3 | . 1 2 . . Swarmer 9 | . 3 2 4 . Grunt 7 | . 4 2 1 . Brawler 1 | . . 1 . . Sentry 2 | . . 2 . . Demolisher 1 | . . . 1 . Best Kill Streak 5 | . 3 5 4 . Combat Bots Only 5 | . 3 5 4 . Max Kills in Single Turn 1 | . 1 1 1 . Gunslinging . | . . . . . Exploded . | . . . . . Melee . | . . . . . Uniques/NPCs Destroyed . | . . . . . Combat | -11 -10 -9 -9 -9 -------- Run | Scr Mat Mat Min Exi Damage Taken 1937 | . 262 372 946 357 Core 408 | . 94 28 178 108 Absorbed by Shields . | . . . . . Core Remaining (%) 81 | 100 62 . . . Volleys Fired 86 | . 26 33 25 2 Largest 2 | . 2 2 2 2 Hottest 100 | . 70 76 76 100 Shots Fired 168 | . 52 66 47 3 Gun 165 | . 52 66 47 . Cannon 1 | . . . . 1 Launcher . | . . . . . Special 2 | . . . . 2 Kinetic 101 | . 26 33 42 . Thermal 67 | . 26 33 5 3 Explosive . | . . . . . Electromagnetic . | . . . . . Robot Hit Streak 12 | . 4 9 12 2 Robot Miss Streak 7 | . 4 6 7 1 Penetration Max . | . . . . . Secondary Targets 3 | . . 1 2 . Max Gunslinging Chain 1 | . . 1 1 . Shots Hit Robots 95 | . 29 39 26 1 Core Hits 42 | . 13 16 13 . Critical Kills . | . . . . . Critical Parts Destroyed . | . . . . . Critical Strikes 4 | . 1 2 1 . Burn 4 | . 1 2 1 . Melee Attacks . | . . . . . Impact . | . . . . . Slashing . | . . . . . Piercing . | . . . . . Sneak Attacks . | . . . . . Combat Hostiles . | . . . . . Follow-up Attacks . | . . . . . Damage Inflicted 1192 | . 387 510 228 67 Guns 1125 | . 387 510 228 . Cannons . | . . . . . Explosions 46 | . . . . 46 Melee . | . . . . . Ramming . | . . . . . Kinetic 617 | . 194 238 185 . Thermal 575 | . 193 272 43 67 Explosive . | . . . . . Electromagnetic . | . . . . . Impact . | . . . . . Slashing . | . . . . . Piercing . | . . . . . Highest Corruption 5 | . . . 5 5 Average Corruption 5 | . . . 5 5 Corruption Purged . | . . . . . Effects 25 | . . . 6 19 Message Errors 4 | . . . . 4 Matter Fused 4 | . . . 1 3 Heat Flow Errors 1 | . . . . 1 Energy Discharges 5 | . . . . 5 Data Loss (minor) 8 | . . . 2 6 Data Loss (major) 2 | . . . 2 . Weapon Failures 1 | . . . 1 . Overload Shots . | . . . . . Overflow Damage . | . . . . . Projectiles . | . . . . . Explosions . | . . . . . Melee . | . . . . . Knockbacks . | . . . . . Impact . | . . . . . Kinetic . | . . . . . Secondary . | . . . . . Self-Inflicted Damage . | . . . . . Shots . | . . . . . Rammed . | . . . . . Targets Rammed . | . . . . . Kicked . | . . . . . Crushed . | . . . . . Highest Temperature 91 | . 63 . . 91 Average Temperature 28 | . 27 . . 50 Received Heat Transfer 258 | . 90 132 36 . Siege Activations . | . . . . . Robots Corrupted . | . . . . . Combat Hostiles . | . . . . . Parts Fried . | . . . . . Impact Corruptions . | . . . . . Robots Melted . | . . . . . Combat Hostiles . | . . . . . Parts Melted 2 | . . 2 . . Heat Transferred 1819 | . 629 851 185 154 Parts Sabotaged . | . . . . . Parts Stolen . | . . . . . Parts Stripped . | . . . . . Power Chain Reactions . | . . . . . Missiles Intercepted . | . . . . . Alert | -11 -10 -9 -9 -9 ------- Run | Scr Mat Mat Min Exi Peak Influence 333 | . 224 333 120 . Initial 94 | . . 94 25 . Average 115 | . 152 127 39 . Maximum Alert Level 1 | . 1 1 . . Low Security (%) 80 | 100 63 80 100 . Level 1 19 | . 36 19 . . Level 2 . | . . . . . Level 3 . | . . . . . Level 4 . | . . . . . Level 5 . | . . . . . High Security . | . . . . . Max Security . | . . . . . Squads Dispatched 3 | . 2 1 . . Investigation . | . . . . . Extermination . | . . . . . Reinforcement 3 | . 2 1 . . Assault . | . . . . . Garrison . | . . . . . Intercept . | . . . . . Construction Impeded . | . . . . . Haulers Reinforced . | . . . . . Cargo Convoy Interrupts . | . . . . . Stealth | -11 -10 -9 -9 -9 --------- Run | Scr Mat Mat Min Exi Distress Signals 4 | . 1 1 2 . Communications Jammed . | . . . . . Distress Signals . | . . . . . Times Spotted 64 | . 13 12 25 14 Peak Tracking Total 19 | . 5 3 19 13 Tactical Retreats 2 | . . 1 . 1 Traps | -11 -10 -9 -9 -9 ------- Run | Scr Mat Mat Min Exi Traps Triggered . | . . . . . Indirectly . | . . . . . Trap Hack Attempts . | . . . . . Triggered . | . . . . . Disarmed . | . . . . . Reprogrammed . | . . . . . Reused . | . . . . . Traps Extracted . | . . . . . Installed . | . . . . . Triggered . | . . . . . Machines | -11 -10 -9 -9 -9 ---------- Run | Scr Mat Mat Min Exi Machines Disabled 1 | . . . . 1 Max in Single Turn 1 | . . . . 1 Machines Sabotaged . | . . . . . Garrisons Compromised . | . . . . . Overloaded Fab Kills . | . . . . . Fab Network Shutdowns . | . . . . . Hacking | -11 -10 -9 -9 -9 --------- Run | Scr Mat Mat Min Exi Machines Accessed 12 | . 3 5 . 4 Terminals 6 | . 3 3 . . Fabricators . | . . . . . Repair Stations 1 | . . 1 . . Recycling Units . | . . . . . Scanalyzers 1 | . . 1 . . Garrison Access . | . . . . . Total Hacks 59 | . 7 25 . 27 Successful 48 | . 3 18 . 27 Failed 11 | . 4 7 . . Catastrophic 1 | . . 1 . . Database Lockouts . | . . . . . Manual 11 | . 4 6 . 1 Terminals 19 | . 7 12 . . Fabricators . | . . . . . Repair Stations 2 | . . 2 . . Recycling Units . | . . . . . Scanalyzers 11 | . . 11 . . Garrison Access . | . . . . . Terminal Hacks 33 | . 1 5 . 27 Record 27 | . . . . 27 Prototype ID Bank 1 | . . 1 . . Alert Level 1 | . . 1 . . Unreport Threat 1 | . . 1 . . Locate Traps 2 | . 1 1 . . Recall Investigation 1 | . . 1 . . Fabricator Hacks . | . . . . . Repair Station Hacks 2 | . . 2 . . Scan Component 1 | . . 1 . . Repair 1 | . . 1 . . Recycling Unit Hacks . | . . . . . Scanalyzer 11 | . . 11 . . Insert Component 5 | . . 5 . . Analyze 6 | . . 6 . . Garrison Access Hacks . | . . . . . Unauthorized Hacks 2 | . 2 . . . Terminals 2 | . 2 . . . Assimilate 1 | . 1 . . . Operators 1 | . 1 . . . Fabricators . | . . . . . Repair Stations . | . . . . . Recycling Units . | . . . . . Scanalyzers . | . . . . . Garrison Access . | . . . . . Data Cores Recovered . | . . . . . Used . | . . . . . Hacking Detections 8 | . 3 5 . . Full Trace Events 1 | . . 1 . . Feedback Events . | . . . . . Feedback Blocked . | . . . . . Robot Schematics Acquired . | . . . . . Robots Built . | . . . . . Matter . | . . . . . Time . | . . . . . Total Robot Build Rating . | . . . . . Part Schematics Acquired 4 | . . 4 . . Parts Built . | . . . . . Matter . | . . . . . Time . | . . . . . Total Part Build Rating . | . . . . . Parts Repaired 1 | . . 1 . . Time 26 | . . 26 . . Parts Recycled . | . . . . . Recycled Matter . | . . . . . Retrieved Matter . | . . . . . Retrieved Components . | . . . . . Parts Scanalyzed 4 | . . 4 . . Part Schematics Acquired 4 | . . 4 . . Parts Damaged . | . . . . . Bothacking | -11 -10 -9 -9 -9 ------------ Run | Scr Mat Mat Min Exi Used RIF Installer . | . . . . . Robots Hacked . | . . . . . Non-combat . | . . . . . Combat . | . . . . . Robot Hacks Applied . | . . . . . Relay Couplers Released . | . . . . . Robots Rewired . | . . . . . Allies Hacked . | . . . . . Hacks Repelled . | . . . . . Allies | -11 -10 -9 -9 -9 -------- Run | Scr Mat Mat Min Exi Total Allies 1 | . 1 . . . Largest Group 1 | . 1 . . . Highest-Rated Group 10 | . 10 . . . Highest-Rated Ally 10 | . 10 . . . Total Orders . | . . . . . Ally Attacks . | . . . . . Total Damage . | . . . . . Kills . | . . . . . Allies Corrupted . | . . . . . Allies Melted . | . . . . . Intel | -11 -10 -9 -9 -9 ------- Run | Scr Mat Mat Min Exi Robot Analysis Total . | . . . . . Derelict Logs Recovered 1 | . . . 1 . Drone Launches . | . . . . . Drone Recoveries . | . . . . . Exploration | -11 -10 -9 -9 -9 ------------- Run | Scr Mat Mat Min Exi Turns Passed 1935 | 3 268 645 230 789 Spaces Moved 965 | 1 139 261 86 478 Core . | . . . . . Treads 550 | . . . 72 478 Legs 415 | 1 139 261 14 . Wheels . | . . . . . Hover . | . . . . . Flight . | . . . . . Fastest Speed 120 | 120 120 120 160 160 Average Speed 162 | 120 120 186 166 160 Slowest Speed 200 | 120 120 200 200 160 Overloaded Moves . | . . . . . Propulsion Burnouts . | . . . . . Robots Hopped . | . . . . . Cave-ins Triggered . | . . . . . Exploration Rate (%) 36 | 2 38 33 27 82 Regions Visited 4 Branch Regions 2 Pre-discovered Areas 2 | . . . 1 1 Known Exits Taken . | . . . . . Unknown Exits Taken 4 | 1 1 1 1 . Scrap Searched . | . . . . . Spaces Dug . | . . . . . Terrain Destroyed . | . . . . . Melee . | . . . . . Projectile . | . . . . . AOE . | . . . . . Terrain Rammed . | . . . . . Walls Destroyed . | . . . . . Machines Disabled . | . . . . . Actions | -11 -10 -9 -9 -9 --------- Run | Scr Mat Mat Min Exi Total 1173 | 3 188 352 133 497 Wait 63 | . 14 31 16 2 Move 961 | . 138 260 85 478 Hop . | . . . . . Pick Up 25 | . 5 13 1 6 Fast Attach 1 | . . 1 . . Attach 15 | . 1 4 6 4 Detach 1 | . . . . 1 Swap 9 | 1 2 6 . . Drop 12 | 2 2 4 . 4 Fire 86 | . 26 33 25 2 Melee . | . . . . . Ram . | . . . . . Kick . | . . . . . Crush . | . . . . . Escape Stasis . | . . . . . Rewire . | . . . . . Trap . | . . . . . Miscellaneous . | . . . . . Route ------- -11/Scrapyard -10/Materials (discovered 2 exits: *Mat / [*Min]) -9/Materials -9/Mines (discovered 2 exits: [*Mat] / *Exi) -9/Exiles History --------- Turn | Location | Event 4 | -11/Scrapyard | Discovered new exit (range 0) 4 | -11/Scrapyard | Entered Materials 4 | -10/Materials | Discovered new exit (range 15) 237 | -10/Materials | Discovered new exit (range 16) 272 | -10/Materials | Entered another Materials area 272 | -9/Materials | Evolved 2 slots: Propulsion x1, Utility x1 357 | -9/Materials | Build established: Mutant 417 | -9/Materials | Repaired Assault Rifle 887 | -9/Materials | Discovered new exit (range 15) 917 | -9/Materials | Entered Mines 918 | -9/Mines | Assembled infested the area 944 | -9/Mines | Met 8R-AWN 995 | -9/Mines | Lost 6 parts (1p4n1w) 1021 | -9/Mines | Learned location of Zion (-6) 1109 | -9/Mines | Core integrity fell below 50% 1120 | -9/Mines | Discovered new exit (range 5) 1141 | -9/Mines | Discovered new exit (range 5) 1147 | -9/Mines | Entered Exiles 1187 | -9/Exiles | Welcomed by 8R-AWN 1210 | -9/Exiles | Met EX-HEX 1312 | -9/Exiles | Met EX-DEC 1355 | -9/Exiles | Visited The Gauntlet 1552 | -9/Exiles | Met EX-BIN 1578 | -9/Exiles | Aligned with FarCom system 1579 | -9/Exiles | Given EX-Vault access code 1663 | -9/Exiles | Opened EX-Vault 1672 | -9/Exiles | Found Prototype Device 1679 | -9/Exiles | Found Prototype Energy Cannon 1681 | -9/Exiles | Identified YOLO Cannon 1718 | -9/Exiles | Warned to stay clear of 0b10 Research branches 1923 | -9/Exiles | Attacked by the Exiles 1936 | -9/Exiles | Self-destructed Last Messages --------------- network. EX-BIN: And don't even think about spreading that code around. We're gonna change it right after you leave. Most certainly not to something like 1234 which I did last time as a little joke and some thief managed to sneak in here and steal a few of HEX's prototypes. System corrupted: FCS attempts to trigger YOLO Cannon. System corrupted: Matter fused (-8). Acquired Lgt. Assault Rifle. System corrupted: Component data lost. System corrupted: Energy discharge (-15). Extracted 53 energy. Acquired Sml. Battery. EXILES: Hostile robot within lab perimeter. Defensive protocols time, folks! EX-DEC: "Let's see what this bad boy can do..." EX-DEC deploys DAS Turret. Plasma Cutter destroyed. Dropped Plasma Cutter. Lgt. Treads destroyed. Acquired Plasma Cutter. Map ----- +----------------------------------------------------+ | ????????????"" """#???????## """"""???? | | ???????????#"" #????????# """###???? | | ???????????#"" #????????#" "X" """"" ???? | | ???????????#"" "#????????#" """ # "???? | | ???????????? ""?????????#" """""""""#?????? | | ?????????????" "?????????##" ###########?????? | | ????????????# #????????##"" #???????????????? | | #####????### ###?######"" #???????????????? | | """#####X# #"###""""""" ##??????????????? | | """""" " "" ##???########### | | "" """ " #####"""""""""# | | " " " """ """" | | # "" " | | ### " "" | | ??## " | | ???## " | | ????##" | | ?????#""" """""" | | ????##" ######""" | | ????#"" ""##?????####""" | | ????#""" """##?????????##""" | | ????""" """##???????????#"""" | | ???#""" ""#???????????##"" | | ???#"" ########??####"""" | | ???#""" ##aaa####""" | | ???#"" @a """" | | ???##"" a a c a | | ????#""""t % a aa | | ????## " | | ?????#" " "" """ | | ?????#"""" ""## ##""" " " ""#" | | ?????#"" ""#### ######""" """##"""" | | ?????#" """"##??# #????###""""####### | | ?????#""" """#??## ####???######?????? | | ?????## ""##??#! "!#??????????????? | | ??????#"" """##???#" #??????????????? | | ??????##""" ##????#" "#??????????????? | | ???????##"""" ##?????#!!""!"#??????????????? | | ????????### #??????########??????????????? | | ??????????##### ##????????????????????????????? | | ??????????????## #?????????????????????????????? | | ???????????????# #?????????????????????????????? | | ???????????????# #?????????????????????????????? | | ???????????????# #?????????????????????????????? | | ?????#####?????# #?????????????????????????????? | | "???#"""""""???# #?????????????????????????????? | | "???#"""""""#??# #?????????????????????????????? | | "#??#" """"#??# #?????????????????????????????? | | "???#"" """#??# #?????????????????????????????? | | "????"" ""???# #?????????????????????????????? | +----------------------------------------------------+ Best States ------------- Heat Dissipation 52 Energy Generation 10 Energy Capacity 250 Matter Stores 300 Matter Capacity 300 Sight Range 18 Terrain Scan Density 10 Evasion (%) 55 Recoil Reduction 3 Item Schematics ----------------- Sensor Array | -9/Materials | Scanalyzed Imp. Treads | -9/Materials | Scanalyzed Field Recycling Unit | -9/Materials | Scanalyzed Heat Sink | -9/Materials | Scanalyzed Robot Schematics ------------------ None Fabricated ------------ Nothing Alien Tech Used ----------------- None Achievements -------------- None Challenges ------------ None Game ------ Seed AdvancedRelayMapper Manual? 0 Play Time 00:14:14 Cumulative 186.8 hours Start 2021.06.05 @ 23:55:00 End 2021.06.06 @ 00:22:32 Sessions 3 Manual Loads 0 Difficulty Rogue Special Mode None Game No. 228 Rogue 228 Adventurer 0 Explorer 0 Win Type - Total 2 Types 2/0/0/0/0/0/0/0/0 Lore% 57 Gallery% 76 Achievement% 56 Wizard Run 0 Options --------- ASCII 0 Keyboard 0 Movement Mouse Keybinds 1 Fullscreen 2 Font 24/Smallcaps Map View 76x50 Tactical HUD 1 Map Filters NONE Filters NONE Steam 1 RUN: 619ce343-c4f5-4075-b808-beaa13b0aff6